[Event "4NCL 2021-22"]
[Site "England"]
[Date "2022.03.26"]
[Round "5.40"]
[White "Merriman, James"]
[Black "Ratnesan, Radha"]
[Result "1-0"]
[ECO "E52"]
[WhiteElo "1861"]
[BlackElo "1623"]
[Annotator "NA"]
[PlyCount "91"]
[EventDate "2021.11.27"]
[EventType "team-tourn"]
[EventCountry "ENG"]
[SourceTitle "playchess.com"]
[Source "ChessBase"]
[SourceQuality "1"]
[TimeControl "40/6000+30:3000+30"]

1. d4 {[%emt 0:00:03]} Nf6 {[%emt 0:00:04]} 2. c4 {[%emt 0:00:07]} e6 {[%emt 0:00:10]} 3. Nc3 {[%emt 0:00:03]} Bb4 {[%emt 0:00:06]} 4. e3 {[%emt 0:00:17]} O-O {[%emt 0:00:20]} 5. Bd3 {[%emt 0:00:05]} d5 {[%emt 0:00:48]} 6. Nf3 {[%emt 0:00:05]} Nbd7 {[%emt 0:03:12]} 7. O-O {[%emt 0:00:17]} Bxc3 {[%emt 0:03:07]} 8. bxc3 {[%emt 0:00:09]} b6 {[%emt 0:06:24]} 9. cxd5 {[%emt 0:03:55]} exd5 {[%emt 0:01:19]} 10. Qc2 {[%emt 0:01:51]} Re8 {[%emt 0:04:59]} 11. Bb2 {[%emt 0:03:31]} Bb7 {[%emt 0:15:22]} 12. c4 {[%emt 0:31:49]} h6 {[%emt 0:27:15]} 13. Rac1 {[%emt 0:07:36]} dxc4 {[%emt 0:06:57]} 14. Bxc4 {[%emt 0:00:27]} Bxf3 {[%emt 0:05:45]} 15. gxf3 {[%emt 0:00:12]} c5 {[%emt 0:07:51]} 16. dxc5 {[%emt 0:03:55]} Nxc5 {[%emt 0:00:44]} 17. Kh1 {[%emt 0:00:47]} Ne6 {[%emt 0:03:56]} 18. Rg1 {[%emt 0:04:02]} Ng5 {[%emt 0:02:35]} 19. h4 {[%emt 0:03:21]} Ne6 {[%emt 0:07:44]} 20. Qf5 {[%emt 0:15:40]} Kf8 {[%emt 0:06:47]} 21. Bb5 {[%emt 0:16:58]} Nd7 {[%emt 0:01:34]} 22. Qg4 {[%emt 0:00:28]} Nf6 {[%emt 0:00:29]} 23. Bxf6 {[%emt 0:01:39]} Qxf6 {[%emt 0:00:04]} 24. Bxe8 {[%emt 0:00:08]} Rxe8 {[%emt 0:00:33]} 25. Rc4 {[%emt 0:01:53]} Qb2 {[%emt 0:01:04]} 26. Kg2 {[%emt 0:02:34]} Qxa2 {[%emt 0:00:15]} 27. Ra4 {[%emt 0:00:08]} Qb2 {[%emt 0:00:42]} 28. Rxa7 {[%emt 0:00:27]} Rd8 {[%emt 0:00:59]} 29. Ra4 {[%emt 0:00:38]} Rd3 {[%emt 0:00:43]} 30. Qb4+ {[%emt 0:00:09]} Qxb4 {[%emt 0:00:07]} 31. Rxb4 {[%emt 0:00:04]} Rd2 {[%emt 0:00:55]} 32. Rgb1 {[%emt 0:00:30]} Nc5 {[%emt 0:00:32]} 33. R4b2 {[%emt 0:00:21]} Rd7 {[%emt 0:00:38]} 34. Rxb6 {[%emt 0:00:05]} Ne6 {[%emt 0:00:17]} 35. Rb8+ {[%emt 0:00:50]} Ke7 {[%emt 0:00:02]} 36. R8b7 {[%emt 0:00:06]} Rxb7 {[%emt 0:00:06]} 37. Rxb7+ {[%emt 0:00:05]} Kf6 {[%emt 0:00:07]} 38. Kg3 {[%emt 0:00:45]} h5 {[%emt 0:01:08]} 39. f4 {[%emt 0:00:49]} g6 {[%emt 0:00:52]} 40. f3 {[%emt 0:00:39]} Nc5 {[%emt 0:02:10]} 41. Rb5 {[%emt 0:50:23]} Ne6 {[%emt 0:50:24]} 42. Rd5 {[%emt 0:00:21]} Ke7 {[%emt 0:01:08]} 43. e4 {[%emt 0:00:19]} Kf6 {[%emt 0:00:28]} 44. f5 {[%emt 0:00:20]} Nf8 {[%emt 0:00:26]} 45. fxg6 {[%emt 0:01:53]} Nxg6 {[%emt 0:00:10]} 46. Rxh5 {[%emt 0:00:10]} 1-0

[Event "4NCL 2021-22"]
[Site "England"]
[Date "2022.03.26"]
[Round "5.41"]
[White "Weller, Jean-Luc"]
[Black "Wall, Gavin"]
[Result "1/2-1/2"]
[ECO "A87"]
[WhiteElo "2230"]
[BlackElo "2312"]
[Annotator "ChessBase"]
[PlyCount "99"]
[EventDate "2021.11.27"]
[EventType "team-tourn"]
[EventCountry "ENG"]
[SourceTitle "playchess.com"]
[Source "ChessBase"]
[SourceQuality "1"]
[TimeControl "40/6000+30:3000+30"]

1. d4 {[%emt 0:00:03]} f5 {[%emt 0:00:04]} 2. g3 {[%emt 0:00:11]} Nf6 {[%emt 0:00:05]} 3. Bg2 {[%emt 0:00:06]} g6 {[%emt 0:00:05]} 4. Nf3 {[%emt 0:00:07]} Bg7 {[%emt 0:00:04]} 5. O-O {[%emt 0:00:11]} O-O {[%emt 0:00:04]} 6. c4 {[%emt 0:00:12]} d6 {[%emt 0:00:06]} 7. Nc3 {[%emt 0:00:22]} Qe8 {[%emt 0:00:20]} 8. d5 {[%emt 0:00:36]} Na6 {[%emt 0:00:06]} 9. Rb1 {[%emt 0:00:46]} c6 {[%emt 0:00:46]} 10. dxc6 {[%emt 0:01:48]} bxc6 {[%emt 0:00:05]} 11. b4 {[%emt 0:01:35]} Bd7 {[%emt 0:01:44]} 12. a3 {[%emt 0:03:31]} Nc7 {[%emt 0:00:52]} 13. Bb2 {[%emt 0:01:54]} Rd8 {[%emt 0:00:25]} 14. Qa4 {[%emt 0:16:57]} e5 {[%emt 0:00:39]} 15. e3 {[%emt 0:04:11]} Ne6 {[%emt 0:02:31]} 16. Rfd1 {[%emt 0:10:39]} e4 {[%emt 0:02:28]} 17. Ne1 {[%emt 0:02:14]} Qe7 {[%emt 0:01:09]} 18. Rd2 {[%emt 0:02:32]} Ng4 {[%emt 0:05:17]} 19. Ne2 {[%emt 0:08:12]} Ne5 {[%emt 0:01:24]} 20. Qb3 {[%emt 0:02:03]} Be8 {[%emt 0:12:14]} 21. Nd4 {[%emt 0:05:11]} Bf7 {[%emt 0:01:23]} 22. Bf1 {[%emt 0:00:27]} Nxd4 {[%emt 0:03:34]} 23. exd4 {[%emt 0:04:43]} Ng4 {[%emt 0:03:53]} 24. Ng2 {[%emt 0:13:43]} d5 {[%emt 0:09:14]} 25. c5 {[%emt 0:06:57]} g5 {[%emt 0:07:54]} 26. h3 {[%emt 0:02:03]} Nf6 {[%emt 0:05:01]} 27. f4 {[%emt 0:01:26]} exf3 {[%emt 0:03:34]} 28. Qxf3 {[%emt 0:00:28]} Bh5 {[%emt 0:01:39]} 29. Qb3 {[%emt 0:01:38]} Ne4 {[%emt 0:00:59]} 30. Rd3 {[%emt 0:00:24]} f4 {[%emt 0:03:30]} 31. g4 {[%emt 0:03:48]} Bg6 {[%emt 0:00:44]} 32. Re1 {[%emt 0:06:14]} Qf7 {[%emt 0:01:26]} 33. Be2 {[%emt 0:01:48]} Ng3 {[%emt 0:00:39]} 34. Bf3 {[%emt 0:00:25]} Bxd3 {[%emt 0:00:12]} 35. Qxd3 {[%emt 0:00:03]} Rfe8 {[%emt 0:01:00]} 36. a4 {[%emt 0:05:05]} Rxe1+ {[%emt 0:08:19]} 37. Nxe1 {[%emt 0:00:02]} Qe6 {[%emt 0:01:25]} 38. Nc2 {[%emt 0:00:39]} Ne4 {[%emt 0:00:43]} 39. Bc1 {[%emt 0:01:32]} h5 {[%emt 0:05:00]} 40. Kg2 {[%emt 0:01:33]} hxg4 {[%emt 0:00:08]} 41. Bxg4 {[%emt 0:52:32]} Qe8 {[%emt 0:51:21]} 42. b5 {[%emt 0:00:00]} Nf6 {[%emt 0:00:00]} 43. Bf5 {[%emt 0:00:00]} Rb8 {[%emt 0:00:00]} 44. Bg6 {[%emt 0:00:00]} Qd7 {[%emt 0:00:00]} 45. Bf5 {[%emt 0:00:00]} Qe7 {[%emt 0:00:00]} 46. Nb4 {[%emt 0:00:00]} Qe1 {[%emt 0:00:00]} 47. Bd2 {[%emt 0:00:00]} f3+ {[%emt 0:00:00]} 48. Kxf3 {[%emt 0:00:00]} Qh1+ {[%emt 0:00:00]} 49. Ke2 {[%emt 0:00:00]} Re8+ {[%emt 0:00:00]} 50. Be3 {[%emt 0:05:12]} 1/2-1/2

[Event "4NCL 2021-22"]
[Site "England"]
[Date "2022.03.26"]
[Round "5.42"]
[White "Delaney, Killian"]
[Black "Townsend, M Paul"]
[Result "1-0"]
[ECO "A21"]
[WhiteElo "2292"]
[BlackElo "2284"]
[Annotator "ChessBase"]
[PlyCount "79"]
[EventDate "2021.11.27"]
[EventType "team-tourn"]
[EventCountry "ENG"]
[SourceTitle "playchess.com"]
[Source "ChessBase"]
[SourceQuality "1"]
[TimeControl "40/6000+30:3000+30"]

1. c4 {[%emt 0:02:20]} e5 {[%emt 0:00:31]} 2. Nc3 {[%emt 0:00:21]} Bb4 {[%emt 0:00:23]} 3. Nd5 {[%emt 0:00:12]} Be7 {[%emt 0:00:29]} 4. d4 {[%emt 0:00:52]} d6 {[%emt 0:00:17]} 5. e4 {[%emt 0:05:43]} Nf6 {[%emt 0:00:50]} 6. Nxe7 {[%emt 0:00:37]} Qxe7 {[%emt 0:00:07]} 7. f3 {[%emt 0:00:11]} c5 {[%emt 0:00:47]} 8. d5 {[%emt 0:08:16]} O-O {[%emt 0:00:36]} 9. Bg5 {[%emt 0:01:56]} h6 {[%emt 0:02:35]} 10. Be3 {[%emt 0:03:16]} Nh7 {[%emt 0:24:42]} 11. g4 {[%emt 0:09:40]} h5 {[%emt 0:06:40]} 12. h3 {[%emt 0:00:14]} g6 {[%emt 0:03:33]} 13. Bd3 {[%emt 0:02:30]} f5 {[%emt 0:08:07]} 14. gxf5 {[%emt 0:06:25]} gxf5 {[%emt 0:00:28]} 15. exf5 {[%emt 0:00:09]} Bxf5 {[%emt 0:01:46]} 16. Bxf5 {[%emt 0:00:13]} Rxf5 {[%emt 0:00:10]} 17. Qc2 {[%emt 0:03:15]} Qh4+ {[%emt 0:12:44]} 18. Kd2 {[%emt 0:00:44]} Rf6 {[%emt 0:05:27]} 19. Ne2 {[%emt 0:00:43]} Nd7 {[%emt 0:01:08]} 20. Rag1+ {[%emt 0:03:24]} Kh8 {[%emt 0:01:40]} 21. Rg3 {[%emt 0:00:48]} Rg8 {[%emt 0:04:34]} 22. Rxg8+ {[%emt 0:04:46]} Kxg8 {[%emt 0:00:03]} 23. Rg1+ {[%emt 0:00:06]} Kh8 {[%emt 0:00:09]} 24. Rg3 {[%emt 0:00:18]} b5 {[%emt 0:08:12]} 25. cxb5 {[%emt 0:04:54]} Qb4+ {[%emt 0:09:03]} 26. Nc3 {[%emt 0:19:09]} Nb6 {[%emt 0:01:16]} 27. a3 {[%emt 0:00:34]} Nc4+ {[%emt 0:06:26]} 28. Kc1 {[%emt 0:00:09]} Nxe3 {[%emt 0:00:51]} 29. axb4 {[%emt 0:00:37]} Nxc2 {[%emt 0:00:06]} 30. Kxc2 {[%emt 0:00:06]} cxb4 {[%emt 0:00:29]} 31. Ne4 {[%emt 0:00:09]} h4 {[%emt 0:01:06]} 32. Rg4 {[%emt 0:00:21]} b3+ {[%emt 0:08:05]} 33. Kd2 {[%emt 0:00:26]} Rf5 {[%emt 0:01:18]} 34. f4 Rxf4 {[%emt 0:00:29]} 35. Rxh4 {[%emt 0:00:56]} Rf7 {[%emt 0:00:43]} 36. Nxd6 {[%emt 0:03:26]} Rd7 {[%emt 0:00:23]} 37. Rh6 {[%emt 0:00:19]} Kg8 {[%emt 0:01:10]} 38. Ke3 {[%emt 0:01:35]} Kf8 {[%emt 0:00:34]} 39. Ne4 {[%emt 0:00:16]} Ng5 {[%emt 0:00:54]} 40. Nxg5 {[%emt 0:00:14]} 1-0

[Event "4NCL 2021-22"]
[Site "England"]
[Date "2022.03.26"]
[Round "5.43"]
[White "Barry, Colm"]
[Black "Murray, David"]
[Result "0-1"]
[ECO "B22"]
[WhiteElo "2241"]
[BlackElo "2108"]
[Annotator "ChessBase"]
[PlyCount "96"]
[EventDate "2021.11.27"]
[EventType "team-tourn"]
[EventCountry "ENG"]
[SourceTitle "playchess.com"]
[Source "ChessBase"]
[SourceQuality "1"]
[TimeControl "40/6000+30:3000+30"]

1. e4 {[%emt 0:00:26]} c5 {[%emt 0:03:16]} 2. c3 {[%emt 0:01:46]} d5 {[%emt 0:00:44]} 3. exd5 {[%emt 0:00:07]} Nf6 {[%emt 0:00:53]} 4. d4 {[%emt 0:01:36]} Nxd5 {[%emt 0:01:13]} 5. Nf3 {[%emt 0:01:15]} cxd4 {[%emt 0:02:03]} 6. cxd4 {[%emt 0:00:08]} g6 {[%emt 0:01:47]} 7. Bc4 {[%emt 0:01:17]} Nb6 {[%emt 0:03:47]} 8. Bb3 {[%emt 0:01:39]} Bg7 {[%emt 0:01:20]} 9. O-O {[%emt 0:05:36]} O-O {[%emt 0:02:09]} 10. h3 {[%emt 0:12:37]} Nc6 {[%emt 0:07:02]} 11. Be3 {[%emt 0:01:47]} e5 {[%emt 0:11:17]} 12. dxe5 {[%emt 0:02:37]} Nxe5 {[%emt 0:01:44]} 13. Nxe5 {[%emt 0:00:32]} Bxe5 {[%emt 0:01:45]} 14. Nc3 {[%emt 0:00:46]} Qh4 {[%emt 0:13:36]} 15. Qf3 {[%emt 0:04:58]} Qf6 {[%emt 0:07:12]} 16. Qxf6 {[%emt 0:04:43]} Bxf6 {[%emt 0:00:07]} 17. Rad1 {[%emt 0:00:45]} Bf5 {[%emt 0:03:17]} 18. g4 {[%emt 0:01:34]} Bxc3 {[%emt 0:01:35]} 19. bxc3 {[%emt 0:04:40]} Be4 {[%emt 0:00:29]} 20. Rd6 {[%emt 0:08:04]} Rac8 {[%emt 0:05:58]} 21. f3 {[%emt 0:05:33]} Bc6 {[%emt 0:01:53]} 22. c4 {[%emt 0:04:58]} Rfe8 {[%emt 0:12:39]} 23. Kf2 {[%emt 0:04:11]} Rc7 {[%emt 0:12:16]} 24. c5 {[%emt 0:01:45]} Rce7 {[%emt 0:02:48]} 25. Bd4 {[%emt 0:24:05]} Nd7 {[%emt 0:00:37]} 26. Kg3 {[%emt 0:01:29]} Nf8 {[%emt 0:01:45]} 27. Rc1 {[%emt 0:03:11]} Re2 {[%emt 0:01:21]} 28. Rc3 {[%emt 0:02:29]} Ne6 {[%emt 0:02:11]} 29. Bf6 {[%emt 0:00:07]} Nc7 {[%emt 0:00:24]} 30. a4 {[%emt 0:01:27]} Kf8 {[%emt 0:02:46]} 31. h4 {[%emt 0:00:34]} Rc8 {[%emt 0:02:17]} 32. Rd1 {[%emt 0:01:43]} Rce8 {[%emt 0:01:02]} 33. h5 {[%emt 0:00:15]} R2e3 {[%emt 0:01:03]} 34. hxg6 {[%emt 0:00:18]} fxg6 {[%emt 0:01:03]} 35. Rdd3 {[%emt 0:01:18]} Rxd3 {[%emt 0:00:31]} 36. Rxd3 {[%emt 0:00:06]} Ne6 {[%emt 0:00:29]} 37. Be5 {[%emt 0:00:46]} Ng5 {[%emt 0:01:51]} 38. Bf4 {[%emt 0:01:15]} Nf7 {[%emt 0:00:24]} 39. g5 {[%emt 0:00:54]} Kg7 {[%emt 0:00:44]} 40. Bc1 {[%emt 0:00:43]} Re2 {[%emt 0:00:36]} 41. Bd2 {[%emt 0:50:20]} Kf8 {[%emt 0:05:09]} 42. f4 {[%emt 0:00:00]} h5 {[%emt 0:03:05]} 43. Bc3 {[%emt 0:00:00]} Be4 {[%emt 0:07:16]} 44. Rd7 {[%emt 0:00:00]} Re3+ {[%emt 0:05:33]} 45. Kh4 {[%emt 0:00:00]} Bg2 {[%emt 0:11:05]} 46. Bg7+ {[%emt 0:02:25]} Ke8 {[%emt 0:00:23]} 47. Be6 {[%emt 0:00:14]} Rxe6 {[%emt 0:00:24]} 48. Rd2 {[%emt 0:00:06]} Bc6 {[%emt 0:00:39]} 0-1

[Event "4NCL 2021-22"]
[Site "England"]
[Date "2022.03.26"]
[Round "5.44"]
[White "Carroll, Peter"]
[Black "Sucikova, Svetlana"]
[Result "0-1"]
[ECO "B12"]
[WhiteElo "2122"]
[BlackElo "2200"]
[Annotator "ChessBase"]
[PlyCount "76"]
[EventDate "2021.11.27"]
[EventType "team-tourn"]
[EventCountry "ENG"]
[SourceTitle "playchess.com"]
[Source "ChessBase"]
[SourceQuality "1"]
[TimeControl "40/6000+30:3000+30"]

1. e4 {[%emt 0:00:01]} c6 {[%emt 0:01:48]} 2. d4 {[%emt 0:00:03]} d5 {[%emt 0:01:14]} 3. e5 {[%emt 0:00:25]} Bf5 {[%emt 0:01:08]} 4. h4 {[%emt 0:00:15]} h5 {[%emt 0:01:04]} 5. c4 {[%emt 0:00:41]} e6 {[%emt 0:00:41]} 6. Nc3 {[%emt 0:00:06]} Ne7 {[%emt 0:00:50]} 7. Nge2 {[%emt 0:00:02]} dxc4 {[%emt 0:06:39]} 8. Ng3 {[%emt 0:00:37]} Nd7 {[%emt 0:02:41]} 9. Bg5 {[%emt 0:08:51]} Qb6 {[%emt 0:08:22]} 10. Qd2 {[%emt 0:14:46]} O-O-O {[%emt 0:05:22]} 11. Nxf5 {[%emt 0:07:44]} exf5 {[%emt 0:01:16]} 12. e6 {[%emt 0:04:59]} Ne5 {[%emt 0:09:24]} 13. O-O-O {[%emt 0:04:24]} f6 {[%emt 0:24:25]} 14. Bf4 {[%emt 0:01:41]} N7g6 {[%emt 0:04:11]} 15. Bh2 {[%emt 0:02:53]} Bb4 {[%emt 0:04:18]} 16. f3 {[%emt 0:04:01]} Qa6 {[%emt 0:02:34]} 17. Qf2 {[%emt 0:01:45]} Bxc3 {[%emt 0:10:55]} 18. bxc3 {[%emt 0:01:07]} Qa3+ {[%emt 0:01:49]} 19. Qb2 {[%emt 0:00:13]} Qxb2+ {[%emt 0:00:58]} 20. Kxb2 {[%emt 0:00:02]} Rhe8 {[%emt 0:00:23]} 21. Kc1 {[%emt 0:01:34]} Nd3+ {[%emt 0:00:52]} 22. Bxd3 {[%emt 0:01:05]} cxd3 {[%emt 0:00:07]} 23. Rhe1 {[%emt 0:00:57]} Nxh4 {[%emt 0:01:25]} 24. Rxd3 {[%emt 0:00:33]} g5 {[%emt 0:01:49]} 25. Bg3 {[%emt 0:03:22]} Nxg2 {[%emt 0:00:58]} 26. Re2 {[%emt 0:00:25]} f4 {[%emt 0:00:35]} 27. Bf2 {[%emt 0:00:57]} Rd6 {[%emt 0:02:21]} 28. c4 {[%emt 0:00:58]} Rdxe6 {[%emt 0:00:24]} 29. Rxe6 {[%emt 0:00:23]} Rxe6 {[%emt 0:00:07]} 30. d5 {[%emt 0:00:03]} cxd5 {[%emt 0:00:54]} 31. cxd5 {[%emt 0:00:02]} Ra6 {[%emt 0:00:39]} 32. Kb2 {[%emt 0:00:10]} Ne3 {[%emt 0:01:41]} 33. Bxe3 {[%emt 0:00:06]} fxe3 {[%emt 0:00:04]} 34. Rxe3 {[%emt 0:00:05]} Kd7 {[%emt 0:00:32]} 35. f4 {[%emt 0:00:09]} Kd6 {[%emt 0:01:02]} 36. fxg5 {[%emt 0:00:06]} fxg5 {[%emt 0:00:06]} 37. Rd3 {[%emt 0:00:13]} Ra5 {[%emt 0:00:12]} 38. Rb3 {[%emt 0:00:02]} b6 {[%emt 0:00:10]} 0-1

[Event "4NCL 2021-22"]
[Site "England"]
[Date "2022.03.26"]
[Round "5.46"]
[White "Casey, Eoghan"]
[Black "Gayson, Peter M"]
[Result "0-1"]
[ECO "A80"]
[WhiteElo "1902"]
[BlackElo "2127"]
[Annotator "ChessBase"]
[PlyCount "110"]
[EventDate "2021.11.27"]
[EventType "team-tourn"]
[EventCountry "ENG"]
[SourceTitle "playchess.com"]
[Source "ChessBase"]
[SourceQuality "1"]
[TimeControl "40/6000+30:3000+30"]

1. d4 {[%emt 0:01:19]} f5 {[%emt 0:10:13]} 2. Bf4 {[%emt 0:07:13]} d6 {[%emt 0:03:31]} 3. e3 {[%emt 0:00:19]} Nf6 {[%emt 0:00:28]} 4. h4 {[%emt 0:04:22]} e6 {[%emt 0:02:15]} 5. Nc3 {[%emt 0:05:43]} Nc6 {[%emt 0:00:40]} 6. Nf3 {[%emt 0:09:47]} Be7 {[%emt 0:04:50]} 7. Bc4 {[%emt 0:19:10]} d5 {[%emt 0:02:15]} 8. Bb5 {[%emt 0:14:19]} O-O {[%emt 0:09:45]} 9. Bxc6 {[%emt 0:03:23]} bxc6 {[%emt 0:02:18]} 10. Ne5 {[%emt 0:00:17]} Qe8 {[%emt 0:03:48]} 11. f3 {[%emt 0:24:30]} c5 {[%emt 0:03:28]} 12. Qd2 {[%emt 0:09:21]} Rb8 {[%emt 0:11:01]} 13. O-O-O {[%emt 0:00:58]} Bd6 {[%emt 0:02:11]} 14. g4 {[%emt 0:00:14]} fxg4 {[%emt 0:11:17]} 15. Rdg1 {[%emt 0:00:28]} gxf3 {[%emt 0:04:46]} 16. h5 {[%emt 0:03:02]} Ne4 {[%emt 0:07:16]} 17. Bh6 {[%emt 0:01:20]} Nxd2 {[%emt 0:11:57]} 18. Rxg7+ {[%emt 0:00:35]} Kh8 {[%emt 0:00:07]} 19. Ng6+ {[%emt 0:01:20]} hxg6 {[%emt 0:00:19]} 20. hxg6 {[%emt 0:00:05]} Qd7 {[%emt 0:12:35]} 21. Rxd7 {[%emt 0:00:21]} Bxd7 {[%emt 0:00:11]} 22. Bxf8+ {[%emt 0:01:46]} Kg8 {[%emt 0:00:08]} 23. Bxd6 {[%emt 0:00:28]} cxd6 {[%emt 0:00:21]} 24. Kxd2 {[%emt 0:00:44]} Rxb2 {[%emt 0:00:21]} 25. Rf1 {[%emt 0:00:57]} Be8 {[%emt 0:00:09]} 26. Kc1 {[%emt 0:00:20]} Rb4 {[%emt 0:00:36]} 27. dxc5 {[%emt 0:00:19]} dxc5 {[%emt 0:00:36]} 28. Rxf3 {[%emt 0:00:23]} Bxg6 {[%emt 0:00:36]} 29. Ne2 {[%emt 0:01:14]} Rc4 {[%emt 0:00:52]} 30. c3 {[%emt 0:00:08]} Bd3 {[%emt 0:03:31]} 31. Nf4 {[%emt 0:00:42]} Be4 {[%emt 0:00:12]} 32. Rg3+ {[%emt 0:00:12]} Kf7 {[%emt 0:00:10]} 33. Kb2 {[%emt 0:00:21]} Ra4 {[%emt 0:00:54]} 34. Kb3 {[%emt 0:00:46]} Ra6 {[%emt 0:00:13]} 35. a3 {[%emt 0:00:56]} Rb6+ {[%emt 0:00:29]} 36. Ka2 {[%emt 0:00:11]} Rb1 {[%emt 0:02:01]} 37. Nh5 {[%emt 0:00:32]} Rh1 {[%emt 0:00:17]} 38. Nf4 {[%emt 0:00:35]} Rh2+ {[%emt 0:00:13]} 39. Kb3 {[%emt 0:00:23]} Bc2+ {[%emt 0:00:23]} 40. Kb2 {[%emt 0:00:19]} Be4+ {[%emt 0:02:07]} 41. Ka1 {[%emt 0:13:00]} Rc2 {[%emt 0:07:24]} 42. Nh5 {[%emt 0:10:50]} Rxc3 {[%emt 0:01:53]} 43. Rg7+ {[%emt 0:03:39]} Kf8 {[%emt 0:00:12]} 44. Rxa7 {[%emt 0:00:09]} Rxe3 {[%emt 0:00:21]} 45. Nf6 {[%emt 0:01:13]} c4 {[%emt 0:01:24]} 46. a4 {[%emt 0:08:59]} c3 {[%emt 0:04:05]} 47. Rc7 {[%emt 0:04:03]} Bc2 {[%emt 0:06:41]} 48. Nd7+ {[%emt 0:07:39]} Ke8 {[%emt 0:03:43]} 49. Nc5 {[%emt 0:00:23]} d4 {[%emt 0:02:01]} 50. a5 {[%emt 0:05:03]} d3 {[%emt 0:00:58]} 51. a6 {[%emt 0:01:00]} d2 {[%emt 0:00:37]} 52. a7 {[%emt 0:00:20]} d1=Q+ {[%emt 0:00:13]} 53. Ka2 {[%emt 0:00:09]} Be4 {[%emt 0:02:23]} 54. Nxe4 {[%emt 0:00:57]} Qa4+ {[%emt 0:00:11]} 55. Kb1 {[%emt 0:00:08]} Re1# {[%emt 0:00:44]} 0-1

[Event "4NCL 2021-22"]
[Site "England"]
[Date "2022.03.26"]
[Round "5.47"]
[White "Clarke, Connor"]
[Black "Reilly, Gerhard"]
[Result "1-0"]
[ECO "A46"]
[WhiteElo "1830"]
[BlackElo "1793"]
[Annotator "NA"]
[PlyCount "37"]
[EventDate "2021.11.27"]
[EventType "team-tourn"]
[EventCountry "ENG"]
[SourceTitle "playchess.com"]
[Source "ChessBase"]
[SourceQuality "1"]
[TimeControl "40/6000+30:3000+30"]

1. d4 {[%emt 0:04:18]} Nf6 {[%emt 0:00:06]} 2. Bg5 {[%emt 0:00:23]} e6 {[%emt 0:00:29]} 3. e4 {[%emt 0:00:14]} h6 {[%emt 0:00:27]} 4. Bxf6 {[%emt 0:00:28]} Qxf6 {[%emt 0:00:13]} 5. c3 {[%emt 0:00:15]} c5 {[%emt 0:03:40]} 6. Nf3 {[%emt 0:00:21]} d5 {[%emt 0:01:51]} 7. Bd3 {[%emt 0:10:42]} Nc6 {[%emt 0:06:04]} 8. O-O {[%emt 0:01:03]} cxd4 {[%emt 0:14:33]} 9. Re1 {[%emt 0:03:38]} dxe4 {[%emt 0:02:01]} 10. Bxe4 {[%emt 0:00:39]} dxc3 {[%emt 0:02:31]} 11. Nxc3 {[%emt 0:00:19]} Be7 {[%emt 0:08:01]} 12. Qa4 {[%emt 0:06:56]} Bd7 {[%emt 0:07:30]} 13. Rad1 {[%emt 0:03:54]} Rd8 {[%emt 0:11:50]} 14. Qb5 {[%emt 0:04:10]} Rb8 {[%emt 0:14:06]} 15. Rxd7 {[%emt 0:05:00]} Kxd7 {[%emt 0:07:21]} 16. Ne5+ {[%emt 0:00:13]} Kc7 {[%emt 0:00:32]} 17. Nxc6 {[%emt 0:00:22]} a6 {[%emt 0:01:01]} 18. Qa5+ {[%emt 0:02:34]} b6 {[%emt 0:01:34]} 19. Qxa6 {[%emt 0:00:52]} 1-0

[Event "4NCL 2021-22"]
[Site "England"]
[Date "2022.03.26"]
[Round "5.48"]
[White "Crowley, James"]
[Black "Shaw, Peter"]
[Result "0-1"]
[ECO "B07"]
[WhiteElo "1475"]
[BlackElo "2094"]
[Annotator "NA"]
[PlyCount "78"]
[EventDate "2021.11.27"]
[EventType "team-tourn"]
[EventCountry "ENG"]
[SourceTitle "playchess.com"]
[Source "ChessBase"]
[SourceQuality "1"]
[TimeControl "40/6000+30:3000+30"]

1. e4 {[%emt 0:02:38]} d6 {[%emt 0:00:21]} 2. d4 {[%emt 0:00:10]} Nf6 {[%emt 0:00:04]} 3. Nc3 {[%emt 0:00:07]} c6 {[%emt 0:00:04]} 4. Nf3 {[%emt 0:01:54]} Bg4 {[%emt 0:00:11]} 5. Be3 {[%emt 0:07:10]} e6 {[%emt 0:00:28]} 6. Be2 {[%emt 0:03:25]} Be7 {[%emt 0:02:47]} 7. a4 {[%emt 0:06:24]} O-O {[%emt 0:01:14]} 8. O-O {[%emt 0:01:03]} d5 {[%emt 0:00:49]} 9. e5 {[%emt 0:08:58]} Nfd7 {[%emt 0:00:15]} 10. Qd2 {[%emt 0:04:46]} c5 {[%emt 0:01:14]} 11. Rfe1 {[%emt 0:12:49]} Nc6 {[%emt 0:01:42]} 12. Nd1 {[%emt 0:02:56]} cxd4 {[%emt 0:10:47]} 13. Bxd4 {[%emt 0:00:10]} Qc7 {[%emt 0:01:50]} 14. Qe3 {[%emt 0:07:13]} Bxf3 {[%emt 0:01:52]} 15. Bxf3 {[%emt 0:00:07]} Nxd4 {[%emt 0:00:32]} 16. Qxd4 {[%emt 0:00:03]} Qxc2 {[%emt 0:00:41]} 17. Re2 {[%emt 0:04:04]} Qc5 {[%emt 0:05:37]} 18. Qd3 {[%emt 0:02:42]} Rfc8 {[%emt 0:01:43]} 19. Nc3 {[%emt 0:02:06]} Qc4 {[%emt 0:03:13]} 20. Rd1 {[%emt 0:04:39]} Qxd3 {[%emt 0:01:48]} 21. Rxd3 {[%emt 0:00:05]} Bb4 {[%emt 0:02:55]} 22. Ree3 {[%emt 0:01:32]} Bxc3 {[%emt 0:06:26]} 23. bxc3 {[%emt 0:00:43]} Rc4 {[%emt 0:00:53]} 24. Bd1 {[%emt 0:00:18]} Rac8 {[%emt 0:02:21]} 25. f3 {[%emt 0:05:30]} a5 {[%emt 0:11:02]} 26. Kf2 {[%emt 0:00:52]} Kf8 {[%emt 0:08:06]} 27. Ke2 {[%emt 0:03:05]} Ke7 {[%emt 0:01:27]} 28. Kd2 {[%emt 0:00:49]} Nb6 {[%emt 0:05:22]} 29. Bb3 {[%emt 0:00:36]} Rh4 {[%emt 0:01:03]} 30. h3 {[%emt 0:00:38]} Nc4+ {[%emt 0:01:04]} 31. Bxc4 {[%emt 0:00:15]} Rhxc4 {[%emt 0:01:51]} 32. Rd4 {[%emt 0:02:59]} Rxd4+ {[%emt 0:00:11]} 33. cxd4 {[%emt 0:00:02]} Rc4 {[%emt 0:00:09]} 34. Rb3 {[%emt 0:02:50]} Rxd4+ {[%emt 0:00:21]} 35. Kc3 {[%emt 0:00:04]} Rc4+ {[%emt 0:00:23]} 36. Kd3 {[%emt 0:00:06]} Rb4 {[%emt 0:03:54]} 37. Rxb4 {[%emt 0:00:10]} axb4 {[%emt 0:00:07]} 38. Kc2 {[%emt 0:00:06]} d4 {[%emt 0:00:33]} 39. Kd3 {[%emt 0:00:25]} b3 {[%emt 0:00:09]} 0-1